bitfinex-derivatives/quotes_BTCF0:USTF0_20250325
["timestamp","ask_amount","ask_price","bid_price","bid_amount"]
[1742903972835,0.20959131,87424.0,87423.0,0.02161754]
[1742903973632,0.20959131,87424.0,87423.0,0.02045754]
[1742903973943,0.21059131,87424.0,87423.0,0.02145754]
[1742903974139,0.21059131,87424.0,87423.0,0.02261754]
[1742903975232,0.21059131,87424.0,87423.0,0.02145754]
[1742903975433,0.21059131,87424.0,87423.0,0.02205754]
[1742903975641,0.21059131,87424.0,87423.0,0.05225754]
[1742903975834,0.21159131,87424.0,87423.0,0.05585754]
[1742903977634,0.21159131,87424.0,87423.0,0.08735754]
[1742903980240,0.21159131,87424.0,87423.0,0.08675754]
[1742903980547,0.21159131,87424.0,87423.0,0.08735754]
[1742903982537,0.21159131,87424.0,87423.0,0.08675754]
[1742903984938,0.21159131,87424.0,87423.0,0.08735754]
[1742903989253,0.17869131,87424.0,87423.0,0.08675754]
[1742903989443,0.17869131,87424.0,87423.0,0.08735754]
[1742903989644,0.17869131,87424.0,87423.0,0.08675754]
[1742903989853,0.17869131,87424.0,87423.0,0.08787754]
[1742903990054,0.17869131,87424.0,87423.0,0.08675754]
[1742903992153,0.17869131,87424.0,87423.0,0.08735754]
[1742903996256,0.17869131,87424.0,87423.0,0.08675754]
[1742903997255,0.17869131,87424.0,87423.0,0.003]
[1742903997461,0.1143818,87416.0,87415.0,0.00017157]
[1742903997753,0.47630181,87416.0,87415.0,0.00017157]
[1742903997955,0.56980181,87416.0,87415.0,0.00017157]
[1742903998162,0.56980181,87416.0,87415.0,0.63455467]
[1742903998163,0.00112001,87416.0,87415.0,0.63455467]
[1742903998352,0.1143818,87416.0,87415.0,0.72376487]
[1742903999859,0.1153818,87416.0,87415.0,0.72376487]
[1742904000454,0.1163818,87416.0,87415.0,1.08456487]
[1742904000653,0.002,87416.0,87415.0,1.08456487]
[1742904000855,0.171652,87417.0,87416.0,0.1143818]
[1742904001058,0.171652,87417.0,87416.0,0.6449818]
[1742904001363,0.171652,87417.0,87416.0,0.6778818]
[1742904002252,8e-05,87417.0,87416.0,0.7876418]
[1742904002458,0.35445104,87424.0,87423.0,0.1143726]
[1742904002662,0.24119975,87424.0,87423.0,1.0257726]
[1742904002857,8e-05,87443.0,87423.0,1.1247]
[1742904003066,0.1151464,87443.0,87442.0,0.4751477]
[1742904003258,0.0008,87443.0,87442.0,2.5057477]
[1742904003461,0.2738495,87451.0,87448.0,0.0571693]
[1742904003757,0.0004,87464.0,87457.0,0.1143281]
[1742904003958,0.30982056,87458.0,87457.0,0.9857281]
[1742904006062,0.30982056,87458.0,87457.0,1.3465281]
[1742904006256,0.00301157,87458.0,87457.0,1.35517028]
[1742904006449,0.00217157,87458.0,87457.0,1.35517028]
[1742904006652,0.00417157,87458.0,87457.0,1.35517028]
[1742904007155,0.00017157,87458.0,87457.0,1.35517028]
[1742904007461,0.00117157,87458.0,87457.0,1.41747028]
[1742904009156,8e-05,87460.0,87459.0,0.1143255]
[1742904009355,8e-05,87460.0,87459.0,0.7146455]
[1742904010358,0.00108,87460.0,87459.0,0.7146455]
[1742904010552,0.00208,87460.0,87459.0,0.7146455]
[1742904011454,0.1142861,87490.0,87477.0,0.114302]
[1742904011664,0.0325,87481.0,87479.0,0.4750994]
[1742904011863,0.0325,87481.0,87479.0,1.0899994]
[1742904012055,0.1146981,87480.0,87479.0,0.7781994]
[1742904012260,0.1475981,87480.0,87479.0,0.6314]
[1742904012464,0.1483581,87480.0,87479.0,0.0006]
[1742904012962,0.1533581,87480.0,87479.0,0.0006]
[1742904013565,0.1493581,87480.0,87479.0,0.0006]
[1742904013771,0.1503581,87480.0,87479.0,0.0006]
[1742904014166,0.1503581,87480.0,87471.0,0.00017157]
[1742904014167,0.0571509,87478.0,87471.0,0.00017157]
[1742904014366,0.1143085,87472.0,87471.0,0.02017157]
[1742904014565,0.11526851,87472.0,87471.0,0.02017157]
[1742904015065,0.11526851,87472.0,87471.0,0.02077157]
[1742904015364,0.14796851,87472.0,87471.0,0.02017157]
[1742904015754,0.14796851,87472.0,87471.0,0.02081157]
[1742904015960,0.14796851,87472.0,87471.0,0.02017157]
[1742904016455,0.14796851,87472.0,87471.0,0.02217157]
[1742904016658,0.14796851,87472.0,87471.0,0.02317157]
[1742904016873,0.14796851,87472.0,87471.0,0.13748137]
[1742904017171,0.14796851,87472.0,87471.0,0.13812137]
[1742904017371,0.17986851,87472.0,87471.0,0.13812137]
[1742904018160,0.17986851,87472.0,87471.0,0.38812137]
[1742904018370,0.17986851,87472.0,87471.0,0.27381157]
[1742904018874,0.114319,87464.0,87457.0,0.00864218]
[1742904019070,0.11543901,87464.0,87463.0,0.0006]
[1742904019272,0.11543901,87464.0,87437.0,0.10968]
[1742904019273,0.1143399,87448.0,87437.0,0.10968]
[1742904019570,0.11545991,87448.0,87447.0,0.4114]
[1742904019760,0.11545991,87448.0,87447.0,0.5257412]
[1742904020161,0.11545991,87448.0,87447.0,0.4114]
[1742904020456,0.11545991,87448.0,87447.0,0.5257412]
[1742904020772,0.11545991,87448.0,87447.0,0.4114]
[1742904020964,0.11645991,87448.0,87447.0,0.4144]
[1742904021366,0.1143504,87440.0,87439.0,0.00062903]
[1742904021569,0.1157104,87440.0,87439.0,0.02062903]
[1742904022457,0.1157104,87440.0,87439.0,0.02126903]
[1742904022662,0.1157104,87440.0,87439.0,0.02062903]
[1742904022965,0.1167104,87440.0,87439.0,0.02062903]
[1742904023159,0.1177104,87440.0,87439.0,0.02062903]
[1742904023870,0.1177104,87440.0,87439.0,0.13566073]
[1742904024257,0.00336,87440.0,87439.0,0.13566073]
[1742904024457,0.002,87440.0,87439.0,0.16736073]
[1742904025065,0.1163504,87440.0,87439.0,1.66736073]
[1742904025868,0.1163504,87440.0,87439.0,0.16736073]
[1742904026071,0.1176704,87440.0,87439.0,0.16736073]
[1742904026673,0.1163504,87440.0,87439.0,0.16736073]
[1742904026872,0.1163504,87440.0,87439.0,0.19856073]
[1742904027868,0.1176704,87440.0,87439.0,0.19856073]
[1742904028076,0.1163504,87440.0,87439.0,0.19856073]
[1742904028980,0.002,87440.0,87439.0,0.19856073]
[1742904029178,0.1163504,87440.0,87439.0,0.19856073]
[1742904029378,0.002,87440.0,87439.0,0.19856073]
[1742904029678,0.1163504,87440.0,87439.0,0.19856073]
[1742904031972,0.1176704,87440.0,87439.0,0.19856073]
[1742904032183,0.00332,87440.0,87439.0,0.19856073]
[1742904032484,0.00332,87440.0,87439.0,0.55936073]
[1742904032871,0.1176704,87440.0,87439.0,0.55936073]
[1742904033483,0.00332,87440.0,87439.0,0.55936073]
[1742904034579,0.065,87444.0,87439.0,0.55936073]
[1742904034580,0.00017157,87456.0,87449.0,0.0571687]
[1742904034777,0.00149157,87456.0,87455.0,0.4751307]
[1742904034968,0.00017157,87456.0,87455.0,1.0157307]
[1742904035172,0.00017157,87456.0,87455.0,1.0471307]
[1742904035373,8e-05,87461.0,87460.0,0.1143242]
[1742904035581,8e-05,87483.0,87460.0,0.1143242]
[1742904035582,0.0332,87466.0,87465.0,0.1143177]
[1742904035782,0.0332,87466.0,87465.0,1.05100728]
[1742904036083,0.0332,87466.0,87465.0,1.08170728]
[1742904037075,0.0332,87466.0,87465.0,1.08470728]
[1742904037879,0.1475164,87466.0,87465.0,1.08470728]
[1742904038083,0.1475164,87466.0,87465.0,0.84470728]
[1742904038385,0.1786164,87466.0,87465.0,0.0036]
[1742904038686,0.2129764,87466.0,87465.0,0.3873177]
[1742904038876,0.2129764,87466.0,87465.0,0.3879577]
[1742904039972,0.2129764,87466.0,87465.0,0.3579577]
[1742904040772,0.2129764,87466.0,87465.0,0.1179577]
[1742904040982,0.2129764,87466.0,87465.0,0.29364]
[1742904041384,0.2129764,87466.0,87465.0,0.3579577]
[1742904042377,0.1799764,87466.0,87465.0,0.3579577]
[1742904042589,0.1799764,87466.0,87465.0,0.4223577]
[1742904042889,0.1799764,87466.0,87465.0,0.6923577]
[1742904043190,0.1799764,87466.0,87465.0,0.6523577]
[1742904043378,0.1799764,87466.0,87465.0,0.4223577]
[1742904044391,0.1799764,87466.0,87465.0,0.1823577]
[1742904044576,0.1799764,87466.0,87465.0,0.4623577]
[1742904044775,0.1799764,87466.0,87465.0,0.00364]
[1742904044983,0.1799764,87466.0,87465.0,0.003]
[1742904045581,0.1799764,87466.0,87465.0,0.0036]
[1742904046188,0.1799764,87466.0,87465.0,0.3479177]
[1742904046688,0.1799764,87466.0,87465.0,0.2336]
[1742904046990,0.1799764,87466.0,87465.0,0.0036]
[1742904048285,0.1799764,87466.0,87465.0,0.2536]
[1742904048791,0.1799764,87466.0,87465.0,0.2836]
[1742904048992,0.1799764,87466.0,87465.0,0.0036]
[1742904049382,0.1799764,87466.0,87465.0,0.2436]
[1742904049990,0.1799764,87466.0,87465.0,0.3579177]
[1742904051394,0.1799764,87466.0,87465.0,0.2436]
[1742904052897,0.1799764,87466.0,87465.0,0.3579177]
[1742904053788,0.1799764,87466.0,87465.0,0.1179177]
[1742904054096,0.2118764,87466.0,87465.0,0.3779177]
[1742904054294,0.2118764,87466.0,87465.0,0.3679177]
[1742904054490,0.2118764,87466.0,87465.0,0.3979177]
[1742904054697,0.2118764,87466.0,87465.0,0.1179177]
[1742904055088,0.2118764,87466.0,87465.0,0.3679177]
[1742904055288,0.2118764,87466.0,87465.0,0.3779177]
[1742904055596,0.2118764,87466.0,87465.0,0.3879177]
[1742904055784,0.2118764,87466.0,87465.0,0.1179177]
[1742904055989,0.2118764,87466.0,87465.0,0.3479177]
[1742904057602,0.2118764,87466.0,87465.0,0.3797177]
[1742904057788,0.2118764,87466.0,87465.0,0.4103177]
[1742904058791,0.2118764,87466.0,87465.0,0.6803177]
[1742904059006,0.2118764,87466.0,87465.0,0.4103177]
[1742904059185,0.2118764,87466.0,87465.0,0.1803177]
[1742904059392,0.2118764,87466.0,87465.0,0.4503177]
[1742904060388,0.2118764,87466.0,87465.0,0.4403177]
[1742904060592,0.2118764,87466.0,87465.0,0.1803177]
[1742904060791,0.2118764,87466.0,87465.0,0.4203177]
[1742904061295,0.2118764,87466.0,87465.0,0.6603177]
[1742904061687,0.2118764,87466.0,87465.0,0.4203177]
[1742904062293,0.1799764,87466.0,87465.0,0.6903177]
[1742904062489,0.1799764,87466.0,87465.0,0.6803177]
[1742904062700,0.1799764,87466.0,87465.0,0.6603177]
[1742904062906,0.1799764,87466.0,87465.0,0.296]
[1742904063296,0.1799764,87466.0,87465.0,0.4103177]
[1742904063498,0.1799764,87466.0,87465.0,0.6403177]
[1742904063806,0.1799764,87466.0,87465.0,0.6703177]
[1742904064006,0.1799764,87466.0,87465.0,0.6503177]
[1742904064592,0.1799764,87466.0,87465.0,0.4103177]
[1742904064909,0.1799764,87466.0,87465.0,0.6603177]
[1742904065210,0.1799764,87466.0,87465.0,0.6903177]
[1742904065408,0.1799764,87466.0,87465.0,0.6503177]
[1742904065609,0.1799764,87466.0,87465.0,0.4103177]
[1742904065811,0.1799764,87466.0,87465.0,0.4503177]
[1742904068215,0.1799764,87466.0,87465.0,0.4303177]
[1742904068920,0.06566,87466.0,87465.0,0.576]
[1742904069301,0.06566,87466.0,87465.0,0.546]
[1742904069507,0.06566,87466.0,87465.0,0.316]
[1742904070208,0.06566,87466.0,87465.0,0.066]
[1742904070413,0.06566,87466.0,87465.0,0.2954]
[1742904070618,0.06566,87466.0,87465.0,0.306]
[1742904071118,0.06566,87466.0,87465.0,0.066]
[1742904071318,0.06566,87466.0,87465.0,0.0654]
[1742904071519,0.06566,87466.0,87465.0,0.3154]
[1742904071719,0.06566,87466.0,87465.0,0.31608]
[1742904071918,0.06566,87466.0,87465.0,0.32608]
[1742904072219,0.06566,87466.0,87465.0,0.00368]
[1742904072412,0.06566,87466.0,87465.0,0.003]
[1742904074718,0.06566,87466.0,87457.0,0.00017157]
[1742904074915,0.3608,87458.0,87457.0,0.00017157]
[1742904075125,0.4718,87458.0,87457.0,0.00017157]
[1742904076122,0.5352,87458.0,87457.0,0.00317157]
[1742904076822,0.5352,87458.0,87457.0,0.00017157]
[1742904077018,0.6495268,87458.0,87457.0,0.06727157]
[1742904077322,0.6495268,87458.0,87457.0,0.31787157]
[1742904077625,0.6495268,87458.0,87457.0,0.31923157]
[1742904077817,0.6495268,87458.0,87457.0,0.31863157]
[1742904078221,0.6495268,87458.0,87457.0,0.34863157]
[1742904078418,0.6495268,87458.0,87457.0,0.46295967]
[1742904078814,0.5398468,87458.0,87457.0,0.46295967]
[1742904079018,0.42552,87458.0,87457.0,0.34863157]
[1742904079919,0.5398468,87458.0,87457.0,0.46295967]
[1742904082011,0.5398468,87458.0,87457.0,0.06863157]
[1742904082209,0.5398468,87458.0,87457.0,0.00453157]
[1742904082422,0.1143386,87449.0,87448.0,0.0946]
[1742904082731,0.1156586,87449.0,87448.0,0.09572497]
[1742904082925,0.1818586,87449.0,87448.0,0.09572497]
[1742904083129,0.1818586,87449.0,87448.0,0.09632497]
[1742904083330,0.1818586,87449.0,87448.0,0.12682497]
[1742904083519,0.1818586,87449.0,87448.0,0.24116487]
[1742904083713,0.1828586,87449.0,87448.0,0.24116487]
[1742904085029,0.1828586,87449.0,87448.0,0.48116487]
[1742904085428,0.1828586,87449.0,87448.0,0.24116487]
[1742904085731,0.1838586,87449.0,87448.0,0.24116487]
[1742904095336,0.1838586,87449.0,87448.0,0.0334]
[1742904095533,0.1838586,87449.0,87440.0,0.00017157]
[1742904095534,0.1143491,87441.0,87440.0,0.00017157]
[1742904095724,0.1156691,87441.0,87440.0,0.28157157]
[1742904095929,0.1771691,87441.0,87440.0,0.28157157]
[1742904096231,0.1771691,87441.0,87440.0,0.31277157]
[1742904096628,0.1781691,87441.0,87440.0,0.55277157]
[1742904096828,0.1791691,87441.0,87440.0,0.58277157]
[1742904097041,0.1791691,87441.0,87440.0,0.42712197]
[1742904097541,0.1791691,87441.0,87440.0,0.70712197]
[1742904097733,0.1791691,87441.0,87440.0,0.67712197]
[1742904097924,0.1791691,87441.0,87440.0,1.42712197]
[1742904098125,0.1778491,87441.0,87440.0,1.42712197]
[1742904098331,0.1778491,87441.0,87440.0,1.36512197]
[1742904098933,0.1778491,87441.0,87440.0,1.63512197]
[1742904099132,0.1778491,87441.0,87440.0,1.14622197]
[1742904099337,0.1791691,87441.0,87440.0,1.38622197]
[1742904099537,0.1778491,87441.0,87440.0,1.40622197]
[1742904099741,0.1778491,87441.0,87440.0,1.65622197]
[1742904099932,0.1778491,87441.0,87440.0,1.17932197]
[1742904100132,0.1792091,87441.0,87440.0,1.14622197]
[1742904100332,0.1792091,87441.0,87440.0,1.40622197]
[1742904100647,0.1778491,87441.0,87440.0,1.32187157]
[1742904100836,0.1778491,87441.0,87440.0,1.14622197]
[1742904101138,0.1792091,87441.0,87440.0,1.14622197]
[1742904101638,0.1792091,87441.0,87440.0,1.00077157]
[1742904102147,0.1143621,87431.0,87413.0,0.3608]
[1742904102341,0.1143621,87431.0,87417.0,0.1143804]
[1742904102342,0.1158421,87431.0,87417.0,0.1143804]
[1742904102532,0.1158421,87431.0,87405.0,0.3608]
[1742904102533,0.1158421,87431.0,87419.0,0.0623]
[1742904102727,0.1158421,87431.0,87419.0,0.038887]
[1742904102728,0.1788421,87431.0,87419.0,0.038887]
[1742904103032,0.1788421,87431.0,87419.0,0.1532642]
[1742904103237,0.1788421,87431.0,87422.0,0.00017157]
[1742904103837,0.1910856,87431.0,87422.0,0.00017157]
[1742904104067,0.1143713,87424.0,87422.0,0.00017157]
[1742904104253,0.4766913,87424.0,87422.0,0.00017157]
[1742904104544,0.5388913,87424.0,87422.0,0.00017157]
[1742904104843,0.5388913,87424.0,87411.0,0.0627]
[1742904104844,0.0571925,87414.0,87404.0,0.27089628]
[1742904105039,0.1143883,87411.0,87410.0,0.47374474]
[1742904105237,0.11594831,87411.0,87410.0,0.47374474]
[1742904105438,0.18024831,87411.0,87410.0,0.47374474]
[1742904107148,0.18024831,87411.0,87410.0,0.27]
[1742904107938,0.1143922,87408.0,87407.0,0.03195763]
[1742904108135,0.1158722,87408.0,87407.0,0.28195763]
[1742904108336,0.1801722,87408.0,87407.0,0.28195763]
[1742904109144,0.1811722,87408.0,87407.0,0.28195763]
[1742904109539,0.1811722,87408.0,87400.0,0.00361507]
[1742904109540,0.0571977,87406.0,87400.0,0.00361507]
[1742904109745,0.1144105,87394.0,87393.0,0.14849614]
[1742904110039,0.1144158,87390.0,87378.0,0.0609]
[1742904110233,0.1158958,87390.0,87378.0,0.0918]
[1742904110439,0.1158958,87390.0,87383.0,0.20444808]
[1742904110440,0.1144236,87384.0,87383.0,0.20444808]
[1742904110648,0.4767036,87384.0,87383.0,0.20444808]
[1742904111037,0.5397036,87384.0,87383.0,0.20444808]
[1742904111637,0.5397036,87384.0,87383.0,0.14209248]
[1742904111638,0.9492036,87384.0,87383.0,0.14209248]
[1742904112640,0.9512036,87384.0,87383.0,0.14209248]
[1742904113245,0.9502036,87384.0,87383.0,0.14209248]
[1742904113740,0.1144341,87376.0,87375.0,0.00045779]
[1742904113938,0.1144472,87366.0,87365.0,0.0314]
[1742904114140,0.1159272,87366.0,87365.0,0.0314]
[1742904114338,0.1144551,87360.0,87359.0,0.00045788]
[1742904114553,0.1144551,87360.0,87359.0,0.02045788]
[1742904114554,0.47681511,87360.0,87359.0,0.02045788]
[1742904114741,0.11601511,87360.0,87359.0,0.29045788]
[1742904115136,0.47681511,87360.0,87359.0,0.02045788]
[1742904115347,0.53961511,87360.0,87359.0,0.02045788]
[1742904115849,0.53961511,87360.0,87359.0,0.05275788]
[1742904115850,0.17881511,87360.0,87359.0,0.05275788]
[1742904116047,0.17981511,87360.0,87359.0,0.05275788]
[1742904116839,0.18081511,87360.0,87359.0,0.05275788]
[1742904117446,0.18081511,87360.0,87359.0,0.03275788]
[1742904117744,0.18081511,87360.0,87359.0,0.00045788]
[1742904119146,0.17981511,87360.0,87359.0,0.00045788]
[1742904119452,0.17881511,87360.0,87359.0,0.00045788]
[1742904132954,0.28905511,87360.0,87359.0,0.00045788]
[1742904133265,0.28905511,87360.0,87359.0,0.28045788]
[1742904133565,0.28905511,87360.0,87359.0,0.25045788]
[1742904133757,0.28905511,87360.0,87359.0,0.00045788]
[1742904134354,0.14691511,87360.0,87359.0,0.16045788]
[1742904134849,0.14691511,87360.0,87359.0,0.00045788]
[1742904135055,0.17691511,87360.0,87359.0,0.00045788]
[1742904136163,0.20731511,87360.0,87359.0,0.00045788]
[1742904137357,0.20731511,87360.0,87359.0,8e-08]
[1742904138167,0.17691511,87360.0,87359.0,8e-08]
[1742904152372,0.28703511,87360.0,87359.0,8e-08]
[1742904164979,0.11601511,87360.0,87359.0,8e-08]
[1742904165185,0.22621511,87360.0,87359.0,0.26000008]
[1742904165379,0.22621511,87360.0,87359.0,8e-08]
[1742904165987,0.25891511,87360.0,87359.0,8e-08]
[1742904166186,0.14871511,87360.0,87359.0,8e-08]
[1742904166391,0.25891511,87360.0,87359.0,8e-08]
[1742904166993,0.28981511,87360.0,87359.0,8e-08]
[1742904171798,0.39282153,87360.0,87359.0,8e-08]
[1742904174896,0.28981511,87360.0,87359.0,8e-08]
[1742904176091,0.17961511,87360.0,87359.0,8e-08]
[1742904176289,0.28973511,87360.0,87359.0,8e-08]
[1742904180608,0.28968194,87360.0,87359.0,8e-08]
[1742904182805,0.39359331,87360.0,87359.0,8e-08]
[1742904182995,0.39339331,87360.0,87359.0,8e-08]
[1742904184902,0.36249331,87360.0,87359.0,8e-08]
[1742904186206,0.39479331,87360.0,87359.0,8e-08]
[1742904186807,0.29088194,87360.0,87359.0,8e-08]
[1742904188398,0.65168194,87360.0,87359.0,8e-08]
[1742904189894,0.47676194,87360.0,87359.0,0.28000008]
[1742904190098,0.58660194,87360.0,87359.0,8e-08]
[1742904191705,0.61660194,87360.0,87359.0,8e-08]
[1742904196006,0.61660194,87360.0,87359.0,0.27000008]
[1742904196310,0.58660194,87360.0,87359.0,8e-08]
[1742904196501,0.58660194,87360.0,87359.0,0.27000008]
[1742904196905,0.58660194,87360.0,87359.0,0.28142045]
[1742904197102,0.47676194,87360.0,87359.0,0.28142045]
[1742904198111,0.47676194,87360.0,87359.0,0.34242045]
[1742904198313,0.0319,87370.0,87359.0,0.34242045]
[1742904198314,0.00025167,87374.0,87373.0,0.114438]
[1742904198614,0.3608,87398.0,87375.0,0.0572172]
[1742904198615,0.1144341,87376.0,87375.0,0.0572172]
[1742904198808,0.11547411,87376.0,87375.0,0.5978172]
[1742904199203,0.0572163,87378.0,87377.0,0.1144328]
[1742904199404,0.0580163,87378.0,87377.0,0.6050328]
[1742904200201,0.0580163,87378.0,87377.0,0.61674347]
[1742904200402,0.44358069,87382.0,87381.0,0.1144276]
[1742904200706,0.44358069,87382.0,87381.0,0.36148]
[1742904200707,0.44426069,87382.0,87381.0,0.36148]
[1742904201105,0.1723226,87382.0,87381.0,0.36148]
[1742904202305,0.1773226,87382.0,87381.0,0.36148]
[1742904202815,0.1823226,87382.0,87381.0,0.36148]
[1742904203301,0.2155226,87382.0,87381.0,0.36148]
[1742904204714,0.1144341,87376.0,87375.0,0.0311]
[1742904204907,0.2249141,87376.0,87375.0,0.0317]
[1742904205213,0.2907141,87376.0,87375.0,0.0317]
[1742904206116,0.2947141,87376.0,87375.0,0.0317]
[1742904206313,0.2977141,87376.0,87375.0,0.0317]
[1742904207613,0.2977141,87376.0,87375.0,0.0006]
[1742904210410,0.2977141,87376.0,87375.0,0.2506]
[1742904210610,0.2977141,87376.0,87375.0,0.2406]
[1742904211421,0.2977141,87376.0,87375.0,0.2725]
[1742904211616,0.2977141,87376.0,87375.0,0.0325]
[1742904212003,0.2977141,87376.0,87375.0,0.0628]
[1742904212726,0.1221141,87376.0,87375.0,0.3128]
[1742904213014,0.1214341,87376.0,87375.0,0.3128]
[1742904214015,0.1221541,87376.0,87375.0,0.3128]
[1742904214227,0.1221541,87376.0,87375.0,0.5528]
[1742904214408,0.1214341,87376.0,87375.0,0.3128]
[1742904214605,0.1221141,87376.0,87375.0,0.3128]
[1742904214821,0.1214341,87376.0,87375.0,0.3128]
[1742904215116,0.1221141,87376.0,87375.0,0.3128]
[1742904215307,0.1214341,87376.0,87375.0,0.3128]
[1742904215503,0.1221941,87376.0,87375.0,0.3128]
[1742904215715,0.1526941,87376.0,87375.0,0.3128]
[1742904216517,0.1519341,87376.0,87375.0,0.3128]
[1742904217021,0.1526141,87376.0,87375.0,0.3128]
[1742904217410,0.1519341,87376.0,87375.0,0.3128]
[1742904217810,0.1526141,87376.0,87375.0,0.3128]
[1742904218521,0.1526141,87376.0,87375.0,0.0628]
[1742904218822,0.1843141,87376.0,87375.0,0.2928]
[1742904219416,0.1836341,87376.0,87375.0,0.2928]
[1742904220107,0.1843941,87376.0,87375.0,0.2928]
[1742904220819,0.1843941,87376.0,87375.0,0.0628]
[1742904221023,0.2153941,87376.0,87375.0,0.0628]
[1742904222011,0.2153941,87376.0,87375.0,0.3228]
[1742904222921,0.2153941,87376.0,87375.0,0.0628]
[1742904227224,0.2153941,87376.0,87375.0,0.2925]
[1742904227423,0.2153941,87376.0,87375.0,0.3226]
[1742904227614,0.2153941,87376.0,87375.0,0.0626]
[1742904227923,0.2153941,87376.0,87375.0,0.0325]
[1742904228427,0.22669107,87376.0,87375.0,0.0006]
[1742904231915,0.114442,87370.0,87369.0,0.00017167]
[1742904232112,0.11532201,87370.0,87369.0,0.00017167]
[1742904232524,0.17932201,87370.0,87369.0,0.00017167]
[1742904233126,0.18132201,87370.0,87369.0,0.00017167]
[1742904233613,0.29112201,87370.0,87369.0,0.00017167]
[1742904234124,0.29312201,87370.0,87369.0,0.00017167]
[1742904236429,0.18332201,87370.0,87369.0,0.00017167]
[1742904236730,0.29312201,87370.0,87369.0,0.00017167]
[1742904239221,0.29312201,87370.0,87369.0,7e-08]
[1742904240319,0.29312201,87370.0,87342.0,0.3608]
[1742904240320,0.1144551,87360.0,87342.0,0.3608]
[1742904240530,0.58593511,87360.0,87344.0,0.0321]
[1742904240726,0.47613511,87360.0,87344.0,0.0321]
[1742904240935,0.58593511,87360.0,87344.0,0.0321]
[1742904241127,0.64693511,87360.0,87344.0,0.0321]
[1742904244737,0.64693511,87360.0,87345.0,0.0304]
[1742904245137,0.64693511,87360.0,87346.0,0.0313]
[1742904245540,1.05643511,87360.0,87347.0,0.0304]
[1742904255333,0.94663511,87360.0,87347.0,0.0304]
[1742904255643,0.99547511,87360.0,87353.0,0.3608]
[1742904255829,0.99547511,87360.0,87354.0,0.097]
[1742904256028,0.99547511,87360.0,87359.0,0.00060008]
[1742904256232,0.99547511,87360.0,87359.0,8e-08]
[1742904256441,0.1144616,87355.0,87354.0,0.097]
[1742904256745,0.11550161,87355.0,87354.0,0.097]
[1742904257247,0.12446162,87355.0,87354.0,0.097]
[1742904257438,0.12446162,87355.0,87354.0,0.09764]
[1742904262740,0.12446162,87355.0,87354.0,0.33764]
[1742904263138,0.12446162,87355.0,87354.0,0.09764]
[1742904263345,0.12446162,87355.0,87354.0,0.19764]
[1742904263547,0.12446162,87355.0,87354.0,0.35764]
[1742904264051,0.12446162,87355.0,87354.0,0.09764]
[1742904264346,0.12446162,87355.0,87354.0,0.19764]
[1742904264645,0.12446162,87355.0,87354.0,0.43764]
[1742904264850,0.12446162,87355.0,87354.0,0.19764]
[1742904265143,0.12446162,87355.0,87354.0,0.45764]
[1742904266048,0.12446162,87355.0,87354.0,0.19764]
[1742904267953,0.32997038,87355.0,87354.0,0.19764]
[1742904269039,0.32997038,87355.0,87354.0,0.20764]
[1742904269352,0.32997038,87355.0,87354.0,0.36764]
[1742904270147,0.35799038,87355.0,87354.0,0.36764]
[1742904270347,0.35799038,87355.0,87354.0,0.60764]
[1742904270643,0.35799038,87355.0,87354.0,0.7221029]
[1742904270846,0.0336,87362.0,87358.0,0.0572284]
[1742904271046,0.1716826,87361.0,87360.0,0.1144538]
[1742904271254,0.1724026,87361.0,87360.0,0.9858538]
[1742904271446,0.1716826,87361.0,87360.0,0.9858538]
[1742904271640,0.1724026,87361.0,87360.0,0.9858538]
[1742904272956,0.0579475,87361.0,87360.0,0.9858538]
[1742904275155,0.0572275,87361.0,87360.0,0.9858538]
[1742904277144,0.0572275,87361.0,87360.0,0.9971055]
[1742904278653,0.03608,87362.0,87361.0,0.1144538]
[1742904278854,0.0004,87400.0,87378.0,0.1716416]
[1742904278855,0.1144302,87381.0,87378.0,0.1716416]
[1742904279062,0.1144276,87381.0,87380.0,0.5324383]
[1742904279359,0.1144276,87381.0,87380.0,0.7930396]
[1742904279542,0.1151476,87381.0,87380.0,1.0430396]
[1742904279748,0.1151476,87381.0,87380.0,0.6214]
[1742904279959,0.1461476,87381.0,87380.0,0.6414]
[1742904280358,0.1461476,87381.0,87380.0,0.6314]
[1742904280659,0.1461476,87381.0,87380.0,0.6214]
[1742904280660,0.1830476,87381.0,87380.0,0.6214]
[1742904280850,0.1830476,87381.0,87380.0,0.6314]
[1742904281155,0.1830476,87381.0,87380.0,0.3614]
[1742904281352,0.1870476,87381.0,87380.0,0.6014]
[1742904281862,0.1870476,87381.0,87380.0,0.6333]
[1742904282049,0.1870476,87381.0,87380.0,0.6652]
[1742904283552,0.1870476,87381.0,87380.0,0.4252]
[1742904283752,0.1870476,87381.0,87380.0,0.7052]
[1742904284258,0.1870476,87381.0,87380.0,0.4252]
[1742904284658,0.1870476,87381.0,87380.0,0.6852]
[1742904285056,0.1870476,87381.0,87380.0,0.3614]
[1742904285560,0.114438,87373.0,87352.0,0.31763608]
[1742904285744,0.115358,87373.0,87359.0,0.0328]
[1742904285944,0.214058,87373.0,87359.0,0.0328]
[1742904286663,0.217058,87373.0,87359.0,0.0328]
[1742904287861,0.220058,87373.0,87359.0,0.0328]
[1742904290767,0.220058,87373.0,87349.0,0.8314]
[1742904290768,0.1144538,87361.0,87349.0,0.8314]
[1742904290969,0.1153738,87361.0,87360.0,0.0006]
[1742904291160,0.1144669,87351.0,87350.0,0.0333]
[1742904291361,0.1153869,87351.0,87350.0,0.2733]
[1742904291556,0.2113869,87351.0,87350.0,0.2739]
[1742904291868,0.1153869,87351.0,87350.0,0.9791682]
[1742904292071,0.1144669,87351.0,87350.0,0.9791682]
[1742904293173,0.1144669,87351.0,87350.0,0.8647]
[1742904293473,0.1144669,87351.0,87350.0,0.9791682]
[1742904293971,0.1144669,87351.0,87350.0,0.6682]
[1742904294175,0.2122869,87351.0,87350.0,0.6682]
[1742904295477,0.2214577,87351.0,87350.0,0.6682]
[1742904296478,0.23051208,87351.0,87350.0,0.6682]
[1742904298879,0.23051208,87351.0,87350.0,0.3074]
[1742904300281,0.23051208,87351.0,87350.0,0.5874]
[1742904301080,0.24222481,87351.0,87350.0,0.3074]
[1742904301266,0.24222481,87351.0,87350.0,0.5474]
[1742904301472,0.24222481,87351.0,87350.0,0.3074]
[1742904301984,0.24222481,87351.0,87350.0,0.2739]
[1742904302776,0.23051208,87351.0,87350.0,0.2739]
[1742904303083,0.19791208,87351.0,87350.0,0.5239]
[1742904303289,0.19784197,87351.0,87350.0,0.5239]
[1742904303477,0.1888577,87351.0,87350.0,0.5539]
[1742904303680,0.1567577,87351.0,87350.0,0.6683682]
[1742904303988,0.1558377,87351.0,87350.0,0.6683682]